[Event "Titled Tuesday Blitz October 11 Late 2022"]
[White "Rubio Tent, Francisco"]
[Black "Rosen, Eric"]
[WhiteFideId "2238233"]
[BlackFideId "2032562"]
[WhiteElo "2211"]
[BlackElo "2362"]
[Result "0-1"]
[Round "07"]
[TimeControl "180+1"]
[Date "2022.10.12"]
[WhiteClock "0:00:01"]
[BlackClock "0:00:08"]

1. e4 {[%clk 0:02:03]}  e5 {[%clk 0:03:00]} 2. Nf3 {[%clk 0:02:02]}  Nf6 {[%clk 0:03:00]} 3. Nxe5 {[%clk 0:02:02]}  Nc6 {[%clk 0:03:01]} 4. Nxc6 {[%clk 0:02:01]}  dxc6 {[%clk 0:03:02]} 5. Nc3 {[%clk 0:02:00]}  Bc5 {[%clk 0:03:01]} 6. h3 {[%clk 0:01:55]}  h5 {[%clk 0:03:01]} 7. d3 {[%clk 0:01:53]}  Be6 {[%clk 0:02:54]} 8. Bg5 {[%clk 0:01:51]}  Bd4 {[%clk 0:02:54]} 9. Qd2 {[%clk 0:01:49]}  Qd6 {[%clk 0:02:46]} 10. Be3 {[%clk 0:01:49]}  O-O-O {[%clk 0:02:40]} 11. O-O-O {[%clk 0:01:45]}  Kb8 {[%clk 0:02:32]} 12. f4 {[%clk 0:01:35]}  Qc5 {[%clk 0:02:30]} 13. Bxd4 {[%clk 0:01:33]}  Rxd4 {[%clk 0:02:29]} 14. e5 {[%clk 0:01:24]}  Nd5 {[%clk 0:02:16]} 15. Nxd5 {[%clk 0:01:15]}  Qxd5 {[%clk 0:02:10]} 16. b3 {[%clk 0:01:12]}  g5 {[%clk 0:01:51]} 17. fxg5 {[%clk 0:00:50]}  Qxe5 {[%clk 0:01:49]} 18. Kb1 {[%clk 0:00:47]}  h4 {[%clk 0:01:16]} 19. Be2 {[%clk 0:00:41]}  Rg8 {[%clk 0:01:12]} 20. Bf3 {[%clk 0:00:35]}  Rxg5 {[%clk 0:01:10]} 21. Rde1 {[%clk 0:00:34]}  Qg7 {[%clk 0:01:06]} 22. Bg4 {[%clk 0:00:32]}  Bxg4 {[%clk 0:00:54]} 23. hxg4 {[%clk 0:00:32]}  a5 {[%clk 0:00:55]} 24. Rxh4 {[%clk 0:00:31]}  Rd8 {[%clk 0:00:46]} 25. Rh7 {[%clk 0:00:28]}  Qg6 {[%clk 0:00:12]} 26. Rxf7 {[%clk 0:00:27]}  Rxg4 {[%clk 0:00:10]} 27. Rf2 {[%clk 0:00:22]}  b6 {[%clk 0:00:08]} 28. a4 {[%clk 0:00:21]}  Kb7 {[%clk 0:00:08]} 29. Qe2 {[%clk 0:00:22]}  Rg5 {[%clk 0:00:07]} 30. Qd2 {[%clk 0:00:20]}  Rgd5 {[%clk 0:00:07]} 31. Ree2 {[%clk 0:00:19]}  Qg7 {[%clk 0:00:07]} 32. Qe3 {[%clk 0:00:18]}  R5d7 {[%clk 0:00:06]} 33. Qe5 {[%clk 0:00:17]}  Qh7 {[%clk 0:00:06]} 34. Qe4 {[%clk 0:00:18]}  Qh1+ {[%clk 0:00:07]} 35. Re1 {[%clk 0:00:18]}  Qh8 {[%clk 0:00:07]} 36. Qe5 {[%clk 0:00:18]}  Qg8 {[%clk 0:00:07]} 37. Qe6 {[%clk 0:00:18]}  Qh7 {[%clk 0:00:07]} 38. Qe4 {[%clk 0:00:18]}  Qg7 {[%clk 0:00:07]} 39. g4 {[%clk 0:00:18]}  Rd4 {[%clk 0:00:07]} 40. Qe5 {[%clk 0:00:17]}  Qxg4 {[%clk 0:00:07]} 41. Rfe2 {[%clk 0:00:16]}  Qd7 {[%clk 0:00:07]} 42. Qe6 {[%clk 0:00:16]}  Rd6 {[%clk 0:00:04]} 43. Qxd7 {[%clk 0:00:16]}  R8xd7 {[%clk 0:00:05]} 44. Kb2 {[%clk 0:00:17]}  c5 {[%clk 0:00:05]} 45. Re3 {[%clk 0:00:17]}  Kc6 {[%clk 0:00:06]} 46. Re4 {[%clk 0:00:18]}  Rg7 {[%clk 0:00:06]} 47. Rc4 {[%clk 0:00:18]}  Rg5 {[%clk 0:00:06]} 48. Rce4 {[%clk 0:00:18]}  Rgd5 {[%clk 0:00:06]} 49. Re7 {[%clk 0:00:18]}  Rd7 {[%clk 0:00:06]} 50. R1e2 {[%clk 0:00:18]}  R5d6 {[%clk 0:00:06]} 51. Rxd7 {[%clk 0:00:19]}  Kxd7 {[%clk 0:00:07]} 52. Kc3 {[%clk 0:00:20]}  Rd4 {[%clk 0:00:06]} 53. Rh2 {[%clk 0:00:20]}  Kc6 {[%clk 0:00:06]} 54. Rh6+ {[%clk 0:00:20]}  Kb7 {[%clk 0:00:07]} 55. Rg6 {[%clk 0:00:18]}  Rf4 {[%clk 0:00:06]} 56. Rh6 {[%clk 0:00:19]}  Kc8 {[%clk 0:00:06]} 57. Rh7 {[%clk 0:00:19]}  Rg4 {[%clk 0:00:06]} 58. Kb2 {[%clk 0:00:19]}  Kb7 {[%clk 0:00:07]} 59. Kc3 {[%clk 0:00:19]}  Rf4 {[%clk 0:00:07]} 60. Rh6 {[%clk 0:00:20]}  Rf7 {[%clk 0:00:07]} 61. Rh1 {[%clk 0:00:20]}  Rg7 {[%clk 0:00:07]} 62. Re1 {[%clk 0:00:20]}  Rh7 {[%clk 0:00:07]} 63. Re4 {[%clk 0:00:20]}  Rd7 {[%clk 0:00:07]} 64. Rh4 {[%clk 0:00:20]}  Rd6 {[%clk 0:00:07]} 65. Rg4 {[%clk 0:00:20]}  Kc6 {[%clk 0:00:08]} 66. Rh4 {[%clk 0:00:21]}  Rg6 {[%clk 0:00:08]} 67. Rf4 {[%clk 0:00:21]}  Rh6 {[%clk 0:00:09]} 68. Rg4 {[%clk 0:00:21]}  Rf6 {[%clk 0:00:09]} 69. Rh4 {[%clk 0:00:22]}  Kd6 {[%clk 0:00:10]} 70. Rg4 {[%clk 0:00:22]}  Re6 {[%clk 0:00:10]} 71. Rh4 {[%clk 0:00:22]}  Rg6 {[%clk 0:00:10]} 72. Rf4 {[%clk 0:00:23]}  Kd7 {[%clk 0:00:11]} 73. Rh4 {[%clk 0:00:23]}  Kc8 {[%clk 0:00:11]} 74. Rf4 {[%clk 0:00:23]}  Kb7 {[%clk 0:00:11]} 75. Rh4 {[%clk 0:00:24]}  Rd6 {[%clk 0:00:12]} 76. Rg4 {[%clk 0:00:24]}  Rd7 {[%clk 0:00:12]} 77. Rh4 {[%clk 0:00:24]}  Rg7 {[%clk 0:00:13]} 78. Rf4 {[%clk 0:00:24]}  c6 {[%clk 0:00:12]} 79. Rf6 {[%clk 0:00:24]}  Rd7 {[%clk 0:00:10]} 80. Rh6 {[%clk 0:00:24]}  Rg7 {[%clk 0:00:10]} 81. Rf6 {[%clk 0:00:23]}  Rd7 {[%clk 0:00:11]} 82. Re6 {[%clk 0:00:23]}  Rc7 {[%clk 0:00:11]} 83. Rd6 {[%clk 0:00:21]}  Rg7 {[%clk 0:00:11]} 84. Re6 {[%clk 0:00:22]}  Kc7 {[%clk 0:00:11]} 85. Rh6 {[%clk 0:00:22]}  Rd7 {[%clk 0:00:11]} 86. Rg6 {[%clk 0:00:22]}  Rf7 {[%clk 0:00:10]} 87. Rh6 {[%clk 0:00:22]}  Rd7 {[%clk 0:00:09]} 88. Rg6 {[%clk 0:00:22]}  Re7 {[%clk 0:00:09]} 89. Rh6 {[%clk 0:00:23]}  Kb7 {[%clk 0:00:09]} 90. Rg6 {[%clk 0:00:23]}  Rc7 {[%clk 0:00:10]} 91. Rh6 {[%clk 0:00:23]}  Rd7 {[%clk 0:00:10]} 92. Rg6 {[%clk 0:00:24]}  Rf7 {[%clk 0:00:10]} 93. Rh6 {[%clk 0:00:24]}  Kc7 {[%clk 0:00:10]} 94. Rg6 {[%clk 0:00:24]}  Rd7 {[%clk 0:00:10]} 95. Rh6 {[%clk 0:00:25]}  Rd6 {[%clk 0:00:11]} 96. Rh7+ {[%clk 0:00:25]}  Rd7 {[%clk 0:00:11]} 97. Rh6 {[%clk 0:00:25]}  Rg7 {[%clk 0:00:10]} 98. Rf6 {[%clk 0:00:24]}  Kd7 {[%clk 0:00:11]} 99. Rh6 {[%clk 0:00:24]}  Re7 {[%clk 0:00:11]} 100. Rg6 {[%clk 0:00:24]}  Re6 {[%clk 0:00:11]} 101. Rg7+ {[%clk 0:00:25]}  Kc8 {[%clk 0:00:11]} 102. Rf7 {[%clk 0:00:25]}  Rd6 {[%clk 0:00:11]} 103. Kd2 {[%clk 0:00:24]}  Kb8 {[%clk 0:00:11]} 104. Ke3 {[%clk 0:00:24]}  Kc8 {[%clk 0:00:11]} 105. Kd2 {[%clk 0:00:16]}  Rh6 {[%clk 0:00:11]} 106. Kc3 {[%clk 0:00:16]}  Rh2 {[%clk 0:00:09]} 107. Ra7 {[%clk 0:00:16]}  Kb8 {[%clk 0:00:09]} 108. Rg7 {[%clk 0:00:16]}  Rh6 {[%clk 0:00:09]} 109. Rg8+ {[%clk 0:00:16]}  Kb7 {[%clk 0:00:09]} 110. Rg7+ {[%clk 0:00:17]}  Ka6 {[%clk 0:00:09]} 111. Rf7 {[%clk 0:00:17]}  Rd6 {[%clk 0:00:09]} 112. Rc7 {[%clk 0:00:17]}  Re6 {[%clk 0:00:07]} 113. Kd2 {[%clk 0:00:17]}  Rf6 {[%clk 0:00:07]} 114. Ke3 {[%clk 0:00:17]}  Rh6 {[%clk 0:00:03]} 115. Kd2 {[%clk 0:00:09]}  Rh2+ {[%clk 0:00:03]} 116. Kc3 {[%clk 0:00:10]}  Rh6 {[%clk 0:00:04]} 117. Kb2 {[%clk 0:00:09]}  Rg6 {[%clk 0:00:04]} 118. Kc1 {[%clk 0:00:09]}  Rf6 {[%clk 0:00:05]} 119. Kb2 {[%clk 0:00:10]}  Re6 {[%clk 0:00:05]} 120. Kc3 {[%clk 0:00:09]}  Rd6 {[%clk 0:00:06]} 121. Kb2 {[%clk 0:00:08]}  Rh6 {[%clk 0:00:06]} 122. Kc1 {[%clk 0:00:09]}  Rg6 {[%clk 0:00:06]} 123. Kd1 {[%clk 0:00:09]}  b5 {[%clk 0:00:05]} 124. axb5+ {[%clk 0:00:05]}  Kxb5 {[%clk 0:00:05]} 125. Rb7+ {[%clk 0:00:05]}  Ka6 {[%clk 0:00:05]} 126. Rb8 {[%clk 0:00:05]}  Rg7 {[%clk 0:00:05]} 127. Rc8 {[%clk 0:00:06]}  Kb7 {[%clk 0:00:05]} 128. Rh8 {[%clk 0:00:06]}  Kb6 {[%clk 0:00:05]} 129. Rh4 {[%clk 0:00:06]}  Kb5 {[%clk 0:00:05]} 130. Rc4 {[%clk 0:00:07]}  Rg1+ {[%clk 0:00:05]} 131. Kd2 {[%clk 0:00:07]}  Ra1 {[%clk 0:00:05]} 132. Kc3 {[%clk 0:00:07]}  Rh1 {[%clk 0:00:06]} 133. Rg4 {[%clk 0:00:07]}  Ra1 {[%clk 0:00:05]} 134. Rg8 {[%clk 0:00:07]}  Rg1 {[%clk 0:00:04]} 135. Rb8+ {[%clk 0:00:06]}  Ka6 {[%clk 0:00:05]} 136. Kc4 {[%clk 0:00:06]}  Rg5 {[%clk 0:00:05]} 137. Rc8 {[%clk 0:00:05]}  Kb7 {[%clk 0:00:05]} 138. Rd8 {[%clk 0:00:06]}  Kb6 {[%clk 0:00:05]} 139. Rb8+ {[%clk 0:00:06]}  Kc7 {[%clk 0:00:05]} 140. Rh8 {[%clk 0:00:07]}  Kb6 {[%clk 0:00:05]} 141. Rh7 {[%clk 0:00:07]}  Rg4+ {[%clk 0:00:05]} 142. Kc3 {[%clk 0:00:07]}  a4 {[%clk 0:00:06]} 143. bxa4 {[%clk 0:00:07]}  Rxa4 {[%clk 0:00:06]} 144. Rh5 {[%clk 0:00:07]}  Ra3+ {[%clk 0:00:06]} 145. Kd2 {[%clk 0:00:07]}  Ra1 {[%clk 0:00:07]} 146. Rg5 {[%clk 0:00:07]}  Rh1 {[%clk 0:00:07]} 147. Rf5 {[%clk 0:00:08]}  Rh4 {[%clk 0:00:04]} 148. Kc3 {[%clk 0:00:08]}  Kb5 {[%clk 0:00:05]} 149. Rg5 {[%clk 0:00:07]}  Ra4 {[%clk 0:00:05]} 150. Kd2 {[%clk 0:00:07]}  Rh4 {[%clk 0:00:03]} 151. Rf5 {[%clk 0:00:07]}  Kb4 {[%clk 0:00:03]} 152. Rf8 {[%clk 0:00:07]}  c4 {[%clk 0:00:03]} 153. Rb8+ {[%clk 0:00:08]}  Kc5 {[%clk 0:00:03]} 154. dxc4 {[%clk 0:00:08]}  Kxc4 {[%clk 0:00:04]} 155. Rc8 {[%clk 0:00:08]}  c5 {[%clk 0:00:04]} 156. Rg8 {[%clk 0:00:08]}  Rh2+ {[%clk 0:00:03]} 157. Kc1 {[%clk 0:00:08]}  Rh4 {[%clk 0:00:04]} 158. Rg3 {[%clk 0:00:08]}  Rf4 {[%clk 0:00:02]} 159. Kb2 {[%clk 0:00:08]}  Kb4 {[%clk 0:00:03]} 160. Rd3 {[%clk 0:00:08]}  c4 {[%clk 0:00:03]} 161. Re3 {[%clk 0:00:07]}  Rf1 {[%clk 0:00:03]} 162. Rg3 {[%clk 0:00:07]}  Rf4 {[%clk 0:00:03]} 163. Rh3 {[%clk 0:00:08]}  Rf5 {[%clk 0:00:03]} 164. Rg3 {[%clk 0:00:08]}  Rh5 {[%clk 0:00:04]} 165. Rf3 {[%clk 0:00:08]}  Rb5 {[%clk 0:00:04]} 166. Rg3 {[%clk 0:00:07]}  Rb6 {[%clk 0:00:03]} 167. Rh3 {[%clk 0:00:07]}  Rb7 {[%clk 0:00:04]} 168. Rg3 {[%clk 0:00:06]}  Rd7 {[%clk 0:00:04]} 169. Rh3 {[%clk 0:00:07]}  Rg7 {[%clk 0:00:04]} 170. Rf3 {[%clk 0:00:07]}  Re7 {[%clk 0:00:04]} 171. Rh3 {[%clk 0:00:07]}  Rf7 {[%clk 0:00:05]} 172. Rg3 {[%clk 0:00:07]}  Rb7 {[%clk 0:00:05]} 173. Rh3 {[%clk 0:00:07]}  Ra7 {[%clk 0:00:06]} 174. Rg3 {[%clk 0:00:07]}  Kc5 {[%clk 0:00:06]} 175. Rh3 {[%clk 0:00:07]}  Kb4 {[%clk 0:00:05]} 176. Rg3 {[%clk 0:00:06]}  Ra8 {[%clk 0:00:06]} 177. Rh3 {[%clk 0:00:06]}  Kc5 {[%clk 0:00:07]} 178. Rg3 {[%clk 0:00:07]}  Kb4 {[%clk 0:00:07]} 179. Rh3 {[%clk 0:00:07]}  Ra6 {[%clk 0:00:08]} 180. Rg3 {[%clk 0:00:07]}  Kc5 {[%clk 0:00:08]} 181. Rh3 {[%clk 0:00:08]}  Kb4 {[%clk 0:00:08]} 182. Rg3 {[%clk 0:00:08]}  Rh6 {[%clk 0:00:08]} 183. Rf3 {[%clk 0:00:08]}  Rh1 {[%clk 0:00:09]} 184. Rg3 {[%clk 0:00:09]}  Rf1 {[%clk 0:00:09]} 185. Rf3 {[%clk 0:00:08]}  Rxf3 {[%clk 0:00:09]} 186. c3+ {[%clk 0:00:01]}  Rxc3 {[%clk 0:00:08]} 0-1


[Site "https://www.chess.com"]

[Event "Titled Tuesday Blitz October 11 Late 2022"]
[White "Shapiro, Daniel"]
[Black "Evdokimov, Alexey"]
[WhiteFideId "2001780"]
[BlackFideId "24162450"]
[WhiteElo "2220"]
[BlackElo "2154"]
[Result "0-1"]
[Round "07"]
[TimeControl "180+1"]
[Date "2022.10.12"]
[WhiteClock "0:00:01"]
[BlackClock "0:00:05"]

1. d4 {[%clk 0:03:00]}  Nf6 {[%clk 0:02:59]} 2. c4 {[%clk 0:03:00]}  g6 {[%clk 0:03:00]} 3. Nc3 {[%clk 0:02:59]}  Bg7 {[%clk 0:03:00]} 4. e4 {[%clk 0:02:59]}  d6 {[%clk 0:03:01]} 5. Be2 {[%clk 0:02:59]}  O-O {[%clk 0:03:01]} 6. Nf3 {[%clk 0:02:59]}  c5 {[%clk 0:03:02]} 7. d5 {[%clk 0:02:54]}  e6 {[%clk 0:03:02]} 8. O-O {[%clk 0:02:51]}  exd5 {[%clk 0:03:01]} 9. cxd5 {[%clk 0:02:46]}  Re8 {[%clk 0:03:01]} 10. Qc2 {[%clk 0:02:42]}  Na6 {[%clk 0:03:01]} 11. h3 {[%clk 0:02:33]}  Nb4 {[%clk 0:03:00]} 12. Qb1 {[%clk 0:02:29]}  Nxe4 {[%clk 0:02:50]} 13. Nxe4 {[%clk 0:02:20]}  Bf5 {[%clk 0:02:50]} 14. Nfd2 {[%clk 0:02:18]}  Qe7 {[%clk 0:02:30]} 15. Bf3 {[%clk 0:02:13]}  Nxd5 {[%clk 0:02:25]} 16. a3 {[%clk 0:02:07]}  Nf4 {[%clk 0:02:11]} 17. Nc4 {[%clk 0:01:22]}  Nxh3+ {[%clk 0:01:52]} 18. gxh3 {[%clk 0:01:19]}  d5 {[%clk 0:01:47]} 19. Ncd2 {[%clk 0:01:05]}  dxe4 {[%clk 0:01:30]} 20. Bg4 {[%clk 0:00:40]}  e3 {[%clk 0:01:23]} 21. Bxf5 {[%clk 0:00:37]}  exd2 {[%clk 0:01:23]} 22. Bxd2 {[%clk 0:00:36]}  gxf5 {[%clk 0:01:16]} 23. Qxf5 {[%clk 0:00:35]}  Bxb2 {[%clk 0:01:11]} 24. Rab1 {[%clk 0:00:31]}  Bd4 {[%clk 0:01:03]} 25. Kh1 {[%clk 0:00:26]}  Qe4+ {[%clk 0:00:53]} 26. Qxe4 {[%clk 0:00:26]}  Rxe4 {[%clk 0:00:53]} 27. Rxb7 {[%clk 0:00:27]}  Kf8 {[%clk 0:00:17]} 28. Rg1 {[%clk 0:00:25]}  Rh4 {[%clk 0:00:05]} 29. Rg3 {[%clk 0:00:20]}  Bxf2 {[%clk 0:00:05]} 30. Rf3 {[%clk 0:00:20]}  Bd4 {[%clk 0:00:03]} 31. Bg5 {[%clk 0:00:20]}  Re4 {[%clk 0:00:02]} 32. Bh6+ {[%clk 0:00:18]}  Ke8 {[%clk 0:00:02]} 33. Rg3 {[%clk 0:00:18]}  Re1+ {[%clk 0:00:02]} 34. Kg2 {[%clk 0:00:13]}  Rg1+ {[%clk 0:00:02]} 35. Kf3 {[%clk 0:00:14]}  Rxg3+ {[%clk 0:00:02]} 36. Kxg3 {[%clk 0:00:15]}  Rd8 {[%clk 0:00:02]} 37. Rxa7 {[%clk 0:00:14]}  Rd6 {[%clk 0:00:03]} 38. Bf4 {[%clk 0:00:13]}  Rg6+ {[%clk 0:00:03]} 39. Kf3 {[%clk 0:00:13]}  h5 {[%clk 0:00:03]} 40. a4 {[%clk 0:00:12]}  c4 {[%clk 0:00:04]} 41. Rc7 {[%clk 0:00:09]}  c3 {[%clk 0:00:03]} 42. a5 {[%clk 0:00:09]}  Ra6 {[%clk 0:00:03]} 43. Rc4 {[%clk 0:00:08]}  Bf6 {[%clk 0:00:03]} 44. Bc7 {[%clk 0:00:08]}  Kd7 {[%clk 0:00:03]} 45. Bb6 {[%clk 0:00:08]}  Ra8 {[%clk 0:00:03]} 46. Ke4 {[%clk 0:00:07]}  Bg7 {[%clk 0:00:03]} 47. Kd3 {[%clk 0:00:05]}  Ra6 {[%clk 0:00:02]} 48. Kc2 {[%clk 0:00:05]}  Be5 {[%clk 0:00:02]} 49. Rc5 {[%clk 0:00:05]}  f6 {[%clk 0:00:03]} 50. Rd5+ {[%clk 0:00:05]}  Kc6 {[%clk 0:00:03]} 51. Rc5+ {[%clk 0:00:06]}  Kd6 {[%clk 0:00:03]} 52. Rc4 {[%clk 0:00:05]}  Kd5 {[%clk 0:00:03]} 53. Rc5+ {[%clk 0:00:05]}  Kd6 {[%clk 0:00:03]} 54. Rc4 {[%clk 0:00:05]}  Ra8 {[%clk 0:00:04]} 55. Kb3 {[%clk 0:00:04]}  Kd5 {[%clk 0:00:04]} 56. Rc5+ {[%clk 0:00:03]}  Kd6 {[%clk 0:00:04]} 57. Rc4 {[%clk 0:00:03]}  f5 {[%clk 0:00:04]} 58. Bc7+ {[%clk 0:00:02]}  Kd5 {[%clk 0:00:05]} 59. Bxe5 {[%clk 0:00:02]}  Kxe5 {[%clk 0:00:05]} 60. Ra4 {[%clk 0:00:01]}  Rc8 {[%clk 0:00:05]} 61. Kc2 {[%clk 0:00:01]}  Kd5 {[%clk 0:00:04]} 62. a6 {[%clk 0:00:01]}  Kc5 {[%clk 0:00:05]} 63. a7 {[%clk 0:00:02]}  Ra8 {[%clk 0:00:05]} 64. Kxc3 {[%clk 0:00:01]}  Kb5 {[%clk 0:00:05]} 0-1


[Site "https://www.chess.com"]

[Event "Titled Tuesday Blitz October 11 Late 2022"]
[White "Sohal, Tanraj"]
[Black "Ismagilov, Damir"]
[WhiteFideId "2608499"]
[BlackFideId "34199982"]
[WhiteElo "2509"]
[BlackElo "2677"]
[Result "1/2-1/2"]
[Round "07"]
[TimeControl "180+1"]
[Date "2022.10.12"]
[WhiteClock "0:01:17"]
[BlackClock "0:00:31"]

1. d4 {[%clk 0:03:00]}  Nf6 {[%clk 0:03:00]} 2. Nf3 {[%clk 0:02:57]}  b6 {[%clk 0:02:59]} 3. g3 {[%clk 0:02:56]}  e6 {[%clk 0:02:58]} 4. Bg2 {[%clk 0:02:55]}  d5 {[%clk 0:02:59]} 5. O-O {[%clk 0:02:55]}  Be7 {[%clk 0:02:59]} 6. Nbd2 {[%clk 0:02:52]}  O-O {[%clk 0:02:58]} 7. Ne5 {[%clk 0:02:49]}  Bb7 {[%clk 0:02:49]} 8. Ndf3 {[%clk 0:02:43]}  c5 {[%clk 0:02:46]} 9. c3 {[%clk 0:02:41]}  Nfd7 {[%clk 0:02:33]} 10. Bf4 {[%clk 0:02:38]}  Nc6 {[%clk 0:02:29]} 11. Nxd7 {[%clk 0:02:35]}  Qxd7 {[%clk 0:02:28]} 12. Qd2 {[%clk 0:02:35]}  b5 {[%clk 0:02:11]} 13. h4 {[%clk 0:02:32]}  b4 {[%clk 0:02:00]} 14. Ne5 {[%clk 0:02:24]}  Nxe5 {[%clk 0:02:00]} 15. Bxe5 {[%clk 0:02:24]}  f6 {[%clk 0:01:59]} 16. Bf4 {[%clk 0:02:23]}  bxc3 {[%clk 0:01:54]} 17. bxc3 {[%clk 0:02:12]}  Bd6 {[%clk 0:01:42]} 18. Rab1 {[%clk 0:02:10]}  Bxf4 {[%clk 0:01:37]} 19. Qxf4 {[%clk 0:01:53]}  Ba6 {[%clk 0:01:37]} 20. Rfe1 {[%clk 0:01:52]}  Bc4 {[%clk 0:01:30]} 21. e4 {[%clk 0:01:49]}  Bxa2 {[%clk 0:01:26]} 22. Ra1 {[%clk 0:01:48]}  Bc4 {[%clk 0:01:25]} 23. exd5 {[%clk 0:01:48]}  Bxd5 {[%clk 0:01:22]} 24. Bxd5 {[%clk 0:01:45]}  exd5 {[%clk 0:01:02]} 25. dxc5 {[%clk 0:01:45]}  a5 {[%clk 0:00:52]} 26. Red1 {[%clk 0:01:30]}  Rfc8 {[%clk 0:00:45]} 27. Qd4 {[%clk 0:01:27]}  Qc6 {[%clk 0:00:37]} 28. Qxd5+ {[%clk 0:01:26]}  Qxd5 {[%clk 0:00:37]} 29. Rxd5 {[%clk 0:01:27]}  a4 {[%clk 0:00:36]} 30. Ra3 {[%clk 0:01:18]}  Ra5 {[%clk 0:00:35]} 31. Rd4 {[%clk 0:01:17]}  Rcxc5 {[%clk 0:00:32]} 32. Raxa4 {[%clk 0:01:16]}  Rxa4 {[%clk 0:00:31]} 33. Rxa4 {[%clk 0:01:17]}  Rxc3 {[%clk 0:00:32]} 34. Ra8+ {[%clk 0:01:17]}  Kf7 {[%clk 0:00:33]} 35. Ra7+ {[%clk 0:01:18]}  Kg6 {[%clk 0:00:33]} 36. Kg2 {[%clk 0:01:18]}  h6 {[%clk 0:00:34]} 37. Ra6 {[%clk 0:01:17]}  Rb3 {[%clk 0:00:31]} 1/2-1/2


[Site "https://www.chess.com"]

[Event "Titled Tuesday Blitz October 11 Late 2022"]
[White "Svane, Rasmus"]
[Black "Sarana, Alexey"]
[WhiteFideId "4657101"]
[BlackFideId "24133795"]
[WhiteElo "2674"]
[BlackElo "2689"]
[Result "1-0"]
[Round "07"]
[TimeControl "180+1"]
[Date "2022.10.11"]
[WhiteClock "0:00:06"]
[BlackClock "0:00:03"]

1. Nf3 {[%clk 0:03:00]}  d5 {[%clk 0:03:00]} 2. g3 {[%clk 0:03:00]}  g6 {[%clk 0:03:00]} 3. Bg2 {[%clk 0:02:59]}  Bg7 {[%clk 0:03:01]} 4. d4 {[%clk 0:03:00]}  c6 {[%clk 0:03:01]} 5. O-O {[%clk 0:03:00]}  Nf6 {[%clk 0:03:02]} 6. c4 {[%clk 0:02:54]}  dxc4 {[%clk 0:03:03]} 7. a4 {[%clk 0:02:53]}  O-O {[%clk 0:03:02]} 8. Na3 {[%clk 0:02:49]}  Be6 {[%clk 0:03:02]} 9. Ng5 {[%clk 0:02:38]}  Bd5 {[%clk 0:03:03]} 10. e4 {[%clk 0:02:38]}  h6 {[%clk 0:03:03]} 11. exd5 {[%clk 0:02:39]}  hxg5 {[%clk 0:03:03]} 12. dxc6 {[%clk 0:02:39]}  Nxc6 {[%clk 0:03:04]} 13. Bxg5 {[%clk 0:02:20]}  Nxd4 {[%clk 0:03:03]} 14. Nxc4 {[%clk 0:02:18]}  Rc8 {[%clk 0:03:02]} 15. Rc1 {[%clk 0:02:11]}  Qd7 {[%clk 0:03:02]} 16. Re1 {[%clk 0:02:02]}  Rfd8 {[%clk 0:03:00]} 17. Ne5 {[%clk 0:01:37]}  Qf5 {[%clk 0:01:59]} 18. Rxc8 {[%clk 0:01:35]}  Qxc8 {[%clk 0:02:00]} 19. Qb1 {[%clk 0:01:04]}  Qc5 {[%clk 0:01:37]} 20. b4 {[%clk 0:01:01]}  Qc3 {[%clk 0:01:30]} 21. h4 {[%clk 0:00:54]}  Nh7 {[%clk 0:01:02]} 22. Bxe7 {[%clk 0:00:38]}  Re8 {[%clk 0:01:01]} 23. Nxf7 {[%clk 0:00:38]}  Nf5 {[%clk 0:00:35]} 24. Rc1 {[%clk 0:00:20]}  Qd2 {[%clk 0:00:28]} 25. Bg5 {[%clk 0:00:19]}  Nxg5 {[%clk 0:00:21]} 26. Nxg5 {[%clk 0:00:20]}  Bd4 {[%clk 0:00:20]} 27. Rf1 {[%clk 0:00:12]}  Bxf2+ {[%clk 0:00:17]} 28. Kh2 {[%clk 0:00:05]}  Bxg3+ {[%clk 0:00:16]} 29. Kh1 {[%clk 0:00:05]}  Bc7 {[%clk 0:00:11]} 30. Qb3+ {[%clk 0:00:05]}  Kh8 {[%clk 0:00:11]} 31. Ne4 {[%clk 0:00:03]}  Qh6 {[%clk 0:00:07]} 32. Qh3 {[%clk 0:00:02]}  Rxe4 {[%clk 0:00:07]} 33. Bxe4 {[%clk 0:00:03]}  Ng3+ {[%clk 0:00:07]} 34. Kg2 {[%clk 0:00:03]}  Qd2+ {[%clk 0:00:04]} 35. Rf2 {[%clk 0:00:04]}  Qd8 {[%clk 0:00:04]} 36. Qg4 {[%clk 0:00:03]}  Qe8 {[%clk 0:00:05]} 37. Bf3 {[%clk 0:00:03]}  Nf5 {[%clk 0:00:05]} 38. Re2 {[%clk 0:00:03]}  Qf7 {[%clk 0:00:05]} 39. Be4 {[%clk 0:00:03]}  Nd4 {[%clk 0:00:02]} 40. Bxg6 {[%clk 0:00:02]}  Qf6 {[%clk 0:00:01]} 41. Rf2 {[%clk 0:00:02]}  Qe5 {[%clk 0:00:01]} 42. Qh5+ {[%clk 0:00:03]}  Qxh5 {[%clk 0:00:01]} 43. Bxh5 {[%clk 0:00:04]}  Ne6 {[%clk 0:00:01]} 44. Rf7 {[%clk 0:00:03]}  Bb6 {[%clk 0:00:01]} 45. Bg4 {[%clk 0:00:03]}  Nd4 {[%clk 0:00:01]} 46. Rxb7 {[%clk 0:00:03]}  Nc2 {[%clk 0:00:01]} 47. a5 {[%clk 0:00:04]}  Bd4 {[%clk 0:00:01]} 48. b5 {[%clk 0:00:04]}  Ne3+ {[%clk 0:00:01]} 49. Kf3 {[%clk 0:00:05]}  Nc4 {[%clk 0:00:01]} 50. b6 {[%clk 0:00:05]}  axb6 {[%clk 0:00:02]} 51. a6 {[%clk 0:00:05]}  b5 {[%clk 0:00:02]} 52. a7 {[%clk 0:00:06]}  Ne5+ {[%clk 0:00:03]} 53. Kf4 {[%clk 0:00:06]}  Ng6+ {[%clk 0:00:03]} 54. Kg5 {[%clk 0:00:05]}  Bxa7 {[%clk 0:00:03]} 55. Kxg6 {[%clk 0:00:06]} 1-0


[Site "https://www.chess.com"]

[Event "Titled Tuesday Blitz October 11 Late 2022"]
[White "Tan, Ralph"]
[Black "Hoffmann, Asa"]
[WhiteFideId "30966590"]
[BlackFideId "2001470"]
[WhiteElo "2059"]
[BlackElo "2117"]
[Result "1-0"]
[Round "07"]
[TimeControl "180+1"]
[Date "2022.10.12"]
[WhiteClock "0:00:28"]
[BlackClock "0:00:34"]

1. Nf3 {[%clk 0:03:00]}  d6 {[%clk 0:02:58]} 2. d4 {[%clk 0:03:00]}  Bg4 {[%clk 0:02:54]} 3. g3 {[%clk 0:02:59]}  Bxf3 {[%clk 0:02:53]} 4. exf3 {[%clk 0:03:00]}  c6 {[%clk 0:02:52]} 5. Bg2 {[%clk 0:03:00]}  e6 {[%clk 0:02:52]} 6. O-O {[%clk 0:03:00]}  g6 {[%clk 0:02:52]} 7. c4 {[%clk 0:03:00]}  Bg7 {[%clk 0:02:51]} 8. Nc3 {[%clk 0:03:01]}  d5 {[%clk 0:02:50]} 9. cxd5 {[%clk 0:02:56]}  cxd5 {[%clk 0:02:45]} 10. Bf4 {[%clk 0:02:56]}  a6 {[%clk 0:02:44]} 11. Rc1 {[%clk 0:02:49]}  Nc6 {[%clk 0:02:43]} 12. Qb3 {[%clk 0:02:30]}  Nxd4 {[%clk 0:02:22]} 13. Qxb7 {[%clk 0:02:27]}  Ne7 {[%clk 0:02:21]} 14. Rfe1 {[%clk 0:02:04]}  O-O {[%clk 0:02:19]} 15. Na4 {[%clk 0:01:48]}  Nb5 {[%clk 0:02:09]} 16. Nb6 {[%clk 0:01:44]}  Nf5 {[%clk 0:01:44]} 17. Nxa8 {[%clk 0:01:30]}  Qxa8 {[%clk 0:01:43]} 18. Qxa8 {[%clk 0:01:30]}  Rxa8 {[%clk 0:01:42]} 19. Be5 {[%clk 0:01:30]}  Bf8 {[%clk 0:01:38]} 20. a4 {[%clk 0:01:22]}  Na7 {[%clk 0:01:35]} 21. Rc7 {[%clk 0:01:17]}  Nc8 {[%clk 0:01:29]} 22. Rec1 {[%clk 0:01:07]}  Ncd6 {[%clk 0:01:23]} 23. b3 {[%clk 0:01:04]}  Rb8 {[%clk 0:01:21]} 24. Bf1 {[%clk 0:00:51]}  Rxb3 {[%clk 0:01:11]} 25. Bxa6 {[%clk 0:00:51]}  Rxf3 {[%clk 0:01:08]} 26. Ra7 {[%clk 0:00:45]}  h5 {[%clk 0:01:02]} 27. Ra8 {[%clk 0:00:44]}  Ra3 {[%clk 0:00:52]} 28. Bf1 {[%clk 0:00:37]}  d4 {[%clk 0:00:50]} 29. h3 {[%clk 0:00:32]}  d3 {[%clk 0:00:49]} 30. g4 {[%clk 0:00:32]}  hxg4 {[%clk 0:00:48]} 31. hxg4 {[%clk 0:00:33]}  d2 {[%clk 0:00:45]} 32. Rd1 {[%clk 0:00:31]}  Nh4 {[%clk 0:00:38]} 33. Rxf8+ {[%clk 0:00:29]}  Kxf8 {[%clk 0:00:36]} 34. Bxd6+ {[%clk 0:00:30]}  Kg7 {[%clk 0:00:36]} 35. Bxa3 {[%clk 0:00:30]}  Nf3+ {[%clk 0:00:34]} 36. Kg2 {[%clk 0:00:29]}  Ne1+ {[%clk 0:00:34]} 37. Kg3 {[%clk 0:00:28]} 1-0


[Site "https://www.chess.com"]